[Event "XXII Obert Internacional d'Escacs Sant Marti 2022"]
[Site "Barcelona, Spain"]
[Date "2022.07.18"]
[Round "6.8"]
[White "Bakshi, Rutuja"]
[Black "Barbero Sendic, Alejandro"]
[Result "0-1"]
[TimeControl "1.30 fb 30"]
[WhiteElo "2084"]
[BlackElo "2326"]

1. d4 {[%clk 01:30:51]} {[%emt 00:00:08]} Nf6 {[%clk 01:30:44]} {[%emt
00:00:15]} 2. Nf3 {[%clk 01:31:15]} {[%emt 00:00:07]} g6 {[%clk 01:30:54]}
{[%emt 00:00:20]} 3. g3 {[%emt 00:00:48]} Bg7 {[%clk 01:31:09]} {[%emt
00:00:13]} 4. Bg2 {[%clk 01:31:27]} {[%emt 00:00:01]} O-O {[%clk 01:31:22]}
{[%emt 00:00:17]} 5. O-O {[%clk 01:31:44]} {[%emt 00:00:14]} d6 {[%clk
01:31:34]} {[%emt 00:00:18]} 6. c4 {[%clk 01:32:05]} {[%emt 00:00:09]} c6
{[%clk 01:31:45]} {[%emt 00:00:19]} 7. Nc3 {[%clk 01:32:27]} {[%emt 00:00:08]}
Bf5 {[%clk 01:31:58]} {[%emt 00:00:16]} 8. Nh4 {[%clk 01:30:49]} {[%emt
00:02:09]} Be6 {[%clk 01:31:18]} {[%emt 00:01:10]} 9. d5 {[%clk 01:31:12]}
{[%emt 00:00:06]} cxd5 {[%clk 01:31:40]} {[%emt 00:00:08]} 10. cxd5 {[%clk
01:31:35]} {[%emt 00:00:07]} Bd7 {[%clk 01:31:56]} {[%emt 00:00:14]} 11. Qb3
{[%clk 01:28:56]} {[%emt 00:03:10]} Qb6 {[%clk 01:27:37]} {[%emt 00:04:49]} 12.
Qc2 {[%clk 01:25:01]} {[%emt 00:04:23]} Na6 {[%clk 01:26:17]} {[%emt 00:01:52]}
13. Be3 {[%clk 01:17:12]} {[%emt 00:08:18]} Qa5 {[%clk 01:24:12]} {[%emt
00:02:35]} 14. h3 {[%clk 01:13:06]} {[%emt 00:04:36]} Rfc8 {[%clk 01:22:15]}
{[%emt 00:02:28]} 15. Qd2 {[%clk 01:09:00]} {[%emt 00:04:36]} Nc5 {[%clk
01:17:55]} {[%emt 00:04:49]} 16. Rab1 {[%clk 00:46:03]} {[%emt 00:23:28]} Qb4
{[%clk 01:01:23]} {[%emt 00:17:01]} 17. Rfc1 {[%clk 00:39:56]} {[%emt
00:06:38]} a5 {[%clk 00:56:29]} {[%emt 00:05:24]} 18. a3 {[%clk 00:33:17]}
{[%emt 00:07:08]} Qb3 {[%clk 00:51:54]} {[%emt 00:05:05]} 19. Bxc5 {[%clk
00:29:25]} {[%emt 00:04:23]} Rxc5 {[%clk 00:52:09]} {[%emt 00:00:15]} 20. e4
{[%clk 00:25:04]} {[%emt 00:04:51]} Rac8 {[%clk 00:48:50]} {[%emt 00:03:49]} 21.
Nf3 {[%clk 00:17:59]} {[%emt 00:07:34]} Qb6 {[%clk 00:40:09]} {[%emt 00:09:12]}
22. Qe3 {[%clk 00:17:24]} {[%emt 00:01:03]} Qc7 {[%clk 00:36:33]} {[%emt
00:04:08]} 23. Re1 {[%clk 00:14:27]} {[%emt 00:03:27]} b5 {[%clk 00:35:11]}
{[%emt 00:01:52]} 24. Nd4 {[%clk 00:13:34]} {[%emt 00:01:23]} Ne8 {[%clk
00:26:49]} {[%emt 00:08:51]} 25. f4 {[%clk 00:11:22]} {[%emt 00:02:43]} Bxd4
{[%clk 00:16:30]} {[%emt 00:10:50]} 26. Qxd4 {[%clk 00:11:50]} {[%emt
00:00:01]} Rc4 {[%clk 00:16:42]} {[%emt 00:00:18]} 27. Qe3 {[%clk 00:07:01]}
{[%emt 00:05:18]} b4 {[%clk 00:17:00]} {[%emt 00:00:13]} 28. axb4 {[%clk
00:07:08]} {[%emt 00:00:24]} axb4 {[%clk 00:16:55]} {[%emt 00:00:34]} 29. Ne2
{[%clk 00:07:36]} Qc5 {[%clk 00:16:28]} {[%emt 00:00:57]} 30. Qxc5 {[%clk
00:07:26]} {[%emt 00:00:40]} R8xc5 {[%clk 00:16:53]} {[%emt 00:00:05]} 31. Nc1
{[%clk 00:06:00]} {[%emt 00:01:55]} Rc2 {[%clk 00:15:37]} {[%emt 00:01:46]} 32.
Nd3 {[%clk 00:05:15]} {[%emt 00:01:14]} R5c4 {[%clk 00:15:55]} {[%emt
00:00:13]} 33. Bf1 {[%clk 00:03:33]} {[%emt 00:02:12]} Rd4 {[%clk 00:14:25]}
{[%emt 00:02:00]} 34. Re3 {[%clk 00:01:43]} {[%emt 00:02:20]} Nf6 {[%clk
00:12:32]} {[%emt 00:02:22]} 35. Bg2 {[%clk 00:00:49]} {[%emt 00:01:25]} Bb5
{[%clk 00:08:39]} {[%emt 00:04:22]} 36. Ne1 {[%clk 00:01:18]} {[%emt 00:00:01]}
Rcd2 {[%clk 00:07:11]} {[%emt 00:01:58]} 37. Bf3 {[%clk 00:01:23]} {[%emt
00:00:25]} Nd7 {[%clk 00:06:19]} {[%emt 00:01:23]} 38. h4 {[%clk 00:00:47]}
{[%emt 00:01:06]} Kg7 {[%clk 00:05:55]} {[%emt 00:00:53]} 39. h5 {[%clk
00:00:45]} {[%emt 00:00:32]} Nc5 {[%clk 00:06:14]} {[%emt 00:00:10]} 40. hxg6
{[%clk 00:01:01]} {[%emt 00:00:16]} hxg6 {[%clk 00:06:39]} {[%emt 00:00:05]} 41.
g4 {[%clk 00:00:45]} {[%emt 00:00:46]} Bd3 {[%clk 00:06:20]} {[%emt 00:00:50]}
42. Ra1 {[%clk 00:00:44]} {[%emt 00:00:30]} Bxe4 {[%clk 00:05:48]} {[%emt
00:01:01]} 43. Bxe4 {[%clk 00:01:06]} {[%emt 00:00:08]} Rxe4 {[%clk 00:06:09]}
{[%emt 00:00:10]} 44. Rxe4 {[%clk 00:00:59]} {[%emt 00:00:37]} Nxe4 {[%clk
00:06:33]} {[%emt 00:00:05]} 45. b3 {[%clk 00:01:05]} {[%emt 00:00:25]} Rb2
{[%clk 00:05:00]} {[%emt 00:02:03]} 46. Ra4 {[%clk 00:01:19]} {[%emt 00:00:16]}
Rxb3 {[%clk 00:05:01]} {[%emt 00:00:29]} 47. Nc2 {[%clk 00:01:43]} {[%emt
00:00:06]} Rb1+ {[%clk 00:05:26]} {[%emt 00:00:05]} 48. Kg2 {[%clk 00:01:58]}
{[%emt 00:00:15]} Rb2 {[%clk 00:05:50]} {[%emt 00:00:06]} 0-1

[Event "XXII Obert Internacional d'Escacs Sant Marti 2022"]
[Site "Barcelona, Spain"]
[Date "2022.07.18"]
[Round "6.9"]
[White "Pimpalkhare, Vedant"]
[Black "Tanaka, Taira Tyler"]
[Result "1/2-1/2"]
[TimeControl "1.30 fb 30"]
[WhiteElo "2057"]
[BlackElo "2242"]

1. Nf3 {[%clk 01:30:54]} {[%emt 00:00:05]} d5 {[%clk 01:30:40]} {[%emt
00:00:21]} 2. d4 {[%clk 01:31:15]} {[%emt 00:00:08]} Nf6 {[%clk 01:31:01]}
{[%emt 00:00:09]} 3. g3 {[%clk 01:31:38]} {[%emt 00:00:07]} Bg4 {[%clk
01:30:29]} {[%emt 00:01:02]} 4. Bg2 {[%clk 01:31:53]} {[%emt 00:00:16]} c6
{[%clk 01:30:40]} {[%emt 00:00:19]} 5. O-O {[%clk 01:31:19]} {[%emt 00:01:04]}
e6 {[%clk 01:30:27]} {[%emt 00:00:43]} 6. c4 {[%emt 00:02:46]} Nbd7 {[%emt
00:03:42]} 7. cxd5 {[%clk 01:27:53]} {[%emt 00:00:52]} exd5 {[%clk 01:27:02]}
{[%emt 00:01:31]} 8. Nc3 {[%clk 01:25:16]} {[%emt 00:03:07]} Be7 {[%clk
01:20:47]} {[%emt 00:06:44]} 9. Qc2 {[%clk 01:20:40]} {[%emt 00:05:07]} O-O
{[%clk 01:17:50]} {[%emt 00:03:27]} 10. Ne5 {[%clk 01:16:16]} {[%emt 00:04:54]}
Bh5 {[%clk 01:07:15]} {[%emt 00:11:05]} 11. f4 {[%clk 01:05:59]} {[%emt
00:10:47]} Nxe5 {[%clk 00:56:17]} {[%emt 00:11:28]} 12. fxe5 {[%clk 01:01:52]}
{[%emt 00:04:36]} Nd7 {[%clk 00:49:33]} {[%emt 00:07:14]} 13. e4 {[%clk
00:57:11]} {[%emt 00:05:11]} Bg6 {[%clk 00:33:19]} {[%emt 00:16:44]} 14. Qb3
{[%clk 00:40:08]} {[%emt 00:17:33]} dxe4 {[%clk 00:28:38]} {[%emt 00:05:12]} 15.
Qxb7 {[%clk 00:31:56]} {[%emt 00:08:41]} Nb6 {[%clk 00:26:57]} {[%emt
00:02:11]} 16. Kh1 {[%clk 00:30:59]} {[%emt 00:01:28]} Bb4 {[%clk 00:21:30]}
{[%emt 00:05:57]} 17. Rd1 {[%clk 00:23:10]} {[%emt 00:08:19]} Bh5 {[%clk
00:16:40]} {[%emt 00:05:19]} 18. Re1 {[%clk 00:22:21]} {[%emt 00:01:19]} Qxd4
{[%clk 00:09:20]} {[%emt 00:07:51]} 19. Rxe4 {[%clk 00:22:35]} {[%emt
00:00:16]} Qf2 {[%clk 00:08:43]} {[%emt 00:01:07]} 20. Rf4 {[%clk 00:19:33]}
{[%emt 00:03:31]} Qe1+ {[%clk 00:03:56]} {[%emt 00:05:18]} 21. Rf1 {[%clk
00:19:29]} {[%emt 00:00:34]} Qxe5 {[%clk 00:04:24]} {[%emt 00:00:02]} 22. Bf4
{[%clk 00:19:22]} {[%emt 00:00:36]} Qa5 {[%clk 00:04:40]} {[%emt 00:00:15]} 23.
Qxc6 {[%clk 00:13:40]} {[%emt 00:06:11]} Rac8 {[%clk 00:04:10]} {[%emt
00:01:00]} 24. Qb7 {[%clk 00:13:52]} {[%emt 00:00:18]} Bxc3 {[%clk 00:03:09]}
{[%emt 00:01:32]} 25. bxc3 {[%clk 00:14:17]} {[%emt 00:00:05]} Bg6 {[%clk
00:02:59]} {[%emt 00:00:40]} 26. Bd6 {[%clk 00:07:22]} {[%emt 00:07:25]} Rfe8
{[%clk 00:02:28]} {[%emt 00:01:01]} 27. Bb4 {[%clk 00:07:12]} {[%emt 00:00:39]}
Qa4 {[%clk 00:02:54]} {[%emt 00:00:04]} 28. Rf4 {[%clk 00:05:55]} {[%emt
00:01:47]} Qc2 {[%clk 00:01:57]} {[%emt 00:01:28]} 29. Raf1 {[%clk 00:04:48]}
{[%emt 00:01:37]} Qxa2 {[%clk 00:01:39]} {[%emt 00:00:48]} 30. c4 {[%clk
00:03:49]} {[%emt 00:01:29]} Rxc4 {[%clk 00:00:32]} {[%emt 00:01:37]} 31. Rxf7
{[%clk 00:03:05]} {[%emt 00:01:13]} Rxb4 {[%clk 00:00:33]} {[%emt 00:00:30]} 32.
Rxg7+ {[%emt 00:01:11]} Kh8 33. Re7 {[%clk 00:02:16]} {[%emt 00:00:37]} Rb1
{[%clk 00:00:58]} {[%emt 00:00:34]} 34. Rxe8+ {[%clk 00:01:12]} {[%emt
00:01:34]} Bxe8 {[%clk 00:01:26]} {[%emt 00:00:01]} 35. Qf3 {[%clk 00:00:55]}
{[%emt 00:00:48]} Rxf1+ {[%clk 00:01:47]} {[%emt 00:00:09]} 36. Qxf1 {[%clk
00:01:22]} {[%emt 00:00:02]} Kg8 {[%clk 00:01:11]} {[%emt 00:01:06]} 37. h4
{[%clk 00:01:45]} {[%emt 00:00:08]} Qe6 {[%clk 00:00:55]} {[%emt 00:00:46]} 38.
Qc1 {[%clk 00:01:57]} {[%emt 00:00:18]} Bg6 {[%clk 00:01:04]} {[%emt 00:00:20]}
39. Qf4 {[%clk 00:02:19]} {[%emt 00:00:09]} a5 {[%clk 00:00:47]} {[%emt
00:00:48]} 40. Qb8+ {[%clk 00:02:25]} {[%emt 00:00:23]} Kg7 {[%clk 00:00:44]}
{[%emt 00:00:33]} 41. Qa7+ {[%clk 00:02:52]} {[%emt 00:00:03]} Nd7 {[%clk
00:01:12]} {[%emt 00:00:03]} 42. Qxa5 {[%clk 00:03:04]} {[%emt 00:00:17]} Nf6
{[%clk 00:01:20]} {[%emt 00:00:22]} 43. Qc7+ {[%clk 00:03:16]} {[%emt
00:00:18]} Bf7 {[%clk 00:01:43]} {[%emt 00:00:07]} 44. Qc3 {[%clk 00:03:29]}
{[%emt 00:00:17]} Qf5 {[%clk 00:01:48]} {[%emt 00:00:24]} 45. Kh2 {[%clk
00:03:28]} {[%emt 00:00:31]} h6 {[%clk 00:01:49]} {[%emt 00:00:29]} 46. Bf3
{[%clk 00:02:57]} {[%emt 00:01:01]} Bh5 {[%clk 00:00:51]} {[%emt 00:01:28]} 47.
Bg2 {[%clk 00:02:23]} {[%emt 00:01:05]} Qf2 {[%clk 00:00:51]} {[%emt 00:00:28]}
48. Kh1 {[%clk 00:02:20]} {[%emt 00:00:34]} Qe2 {[%clk 00:00:47]} {[%emt
00:00:34]} 49. Kg1 {[%clk 00:02:08]} {[%emt 00:00:42]} Qd1+ {[%clk 00:00:49]}
{[%emt 00:00:27]} 50. Kh2 {[%clk 00:02:33]} {[%emt 00:00:06]} Bf7 {[%clk
00:01:02]} {[%emt 00:00:17]} 51. Bf3 {[%clk 00:02:53]} {[%emt 00:00:10]} Qd6
{[%clk 00:01:05]} {[%emt 00:00:28]} 52. Qa5 {[%clk 00:01:41]} {[%emt 00:01:41]}
Qd4 {[%clk 00:01:02]} {[%emt 00:00:31]} 53. Qe1 {[%clk 00:01:34]} {[%emt
00:00:39]} h5 {[%clk 00:00:39]} {[%emt 00:00:54]} 54. Qe2 {[%clk 00:01:07]}
{[%emt 00:00:57]} Bd5 {[%clk 00:00:35]} {[%emt 00:00:33]} 55. Qe7+ {[%clk
00:00:40]} {[%emt 00:00:57]} Kg6 {[%clk 00:01:00]} {[%emt 00:00:06]} 56. Qe2
{[%clk 00:00:49]} {[%emt 00:00:21]} Bxf3 {[%clk 00:01:04]} {[%emt 00:00:25]} 57.
Qxf3 {[%clk 00:01:18]} {[%emt 00:00:02]} Qe4 {[%clk 00:01:08]} {[%emt
00:00:26]} 58. Qf1 {[%clk 00:01:14]} {[%emt 00:00:34]} Qc2+ {[%clk 00:00:46]}
{[%emt 00:00:51]} 59. Kh1 {[%clk 00:01:31]} {[%emt 00:00:11]} Ng4 {[%clk
00:00:45]} {[%emt 00:00:33]} 60. Qa6+ {[%clk 00:01:53]} {[%emt 00:00:09]} Nf6
{[%clk 00:00:51]} {[%emt 00:00:24]} 61. Qb6 {[%clk 00:01:51]} {[%emt 00:00:32]}
Qe2 {[%clk 00:00:59]} {[%emt 00:00:21]} 62. Kg1 {[%clk 00:02:05]} {[%emt
00:00:16]} Qe1+ {[%clk 00:01:11]} {[%emt 00:00:17]} 63. Kg2 {[%clk 00:02:29]}
{[%emt 00:00:05]} Kf5 {[%clk 00:01:16]} {[%emt 00:00:27]} 64. Qc5+ {[%clk
00:02:33]} {[%emt 00:00:26]} Qe5 {[%clk 00:01:36]} {[%emt 00:00:11]} 65. Qc8+
{[%clk 00:03:01]} {[%emt 00:00:02]} Kg6 {[%clk 00:01:37]} {[%emt 00:00:29]} 66.
Qa6 {[%clk 00:03:28]} {[%emt 00:00:03]} Qe4+ {[%clk 00:01:09]} {[%emt
00:00:58]} 67. Kh2 {[%clk 00:03:50]} {[%emt 00:00:06]} Kf5 {[%clk 00:00:53]}
{[%emt 00:00:48]} 68. Qf1+ {[%clk 00:03:40]} {[%emt 00:00:41]} Ke5 {[%clk
00:01:10]} {[%emt 00:00:12]} 69. Qb5+ {[%clk 00:03:55]} {[%emt 00:00:15]} Qd5
{[%clk 00:00:42]} {[%emt 00:00:59]} 70. Qe2+ {[%clk 00:04:11]} {[%emt
00:00:13]} Kd6 {[%clk 00:00:36]} {[%emt 00:00:36]} 71. Qa6+ {[%clk 00:04:30]}
{[%emt 00:00:11]} Ke7 {[%clk 00:00:49]} {[%emt 00:00:17]} 72. Qa7+ {[%clk
00:04:34]} {[%emt 00:00:26]} Nd7 {[%clk 00:01:10]} {[%emt 00:00:08]} 73. Qc7
{[%clk 00:03:53]} {[%emt 00:01:08]} Ke6 {[%clk 00:01:13]} {[%emt 00:00:31]} 74.
Qc8 {[%clk 00:04:17]} {[%emt 00:00:06]} Qd2+ {[%clk 00:01:08]} {[%emt
00:00:35]} 75. Kh3 {[%clk 00:04:37]} {[%emt 00:00:05]} Qd5 {[%clk 00:00:44]}
{[%emt 00:00:58]} 76. Qg8+ {[%clk 00:05:01]} {[%emt 00:00:06]} Kd6 {[%clk
00:01:12]} {[%emt 00:00:02]} 77. Qxd5+ {[%clk 00:05:23]} {[%emt 00:00:08]}
1/2-1/2

[Event "XXII Obert Internacional d'Escacs Sant Marti 2022"]
[Site "Barcelona, Spain"]
[Date "2022.07.18"]
[Round "6.10"]
[White "Arpan, Das (Jr)"]
[Black "Ortiz Verdezoto, Anahi"]
[Result "1/2-1/2"]
[TimeControl "1.30 fb 30"]
[WhiteElo "2178"]
[BlackElo "2046"]

1. e4 {[%clk 01:30:57]} {[%emt 00:00:02]} e5 {[%clk 01:29:41]} {[%emt
00:01:20]} 2. Nf3 {[%clk 01:31:23]} {[%emt 00:00:03]} Nc6 {[%clk 01:29:23]}
{[%emt 00:00:48]} 3. Bb5 {[%clk 01:31:49]} {[%emt 00:00:04]} a6 {[%clk
01:29:30]} {[%emt 00:00:25]} 4. Ba4 {[%clk 01:32:14]} {[%emt 00:00:04]} Nf6
{[%clk 01:29:34]} {[%emt 00:00:25]} 5. O-O {[%clk 01:32:35]} {[%emt 00:00:09]}
Be7 {[%clk 01:29:39]} {[%emt 00:00:25]} 6. Re1 {[%clk 01:32:55]} {[%emt
00:00:11]} b5 {[%clk 01:30:00]} {[%emt 00:00:09]} 7. Bb3 {[%clk 01:33:19]}
{[%emt 00:00:06]} d6 {[%clk 01:30:21]} {[%emt 00:00:09]} 8. c3 {[%clk
01:33:44]} {[%emt 00:00:06]} O-O {[%clk 01:30:36]} {[%emt 00:00:14]} 9. h3
{[%clk 01:34:09]} {[%emt 00:00:04]} Na5 {[%clk 01:30:56]} {[%emt 00:00:11]} 10.
Bc2 {[%clk 01:34:31]} {[%emt 00:00:09]} c5 {[%clk 01:29:00]} {[%emt 00:02:25]}
11. d4 {[%clk 01:34:56]} {[%emt 00:00:05]} Bb7 {[%clk 01:28:52]} {[%emt
00:00:39]} 12. d5 {[%clk 01:33:25]} {[%emt 00:02:00]} Nc4 {[%clk 01:29:16]}
{[%emt 00:00:06]} 13. b3 {[%clk 01:21:11]} {[%emt 00:12:45]} Nb6 {[%clk
01:29:39]} {[%emt 00:00:07]} 14. a4 {[%clk 01:18:21]} {[%emt 00:03:21]} bxa4
{[%clk 01:18:16]} {[%emt 00:11:53]} 15. bxa4 {[%clk 01:17:22]} {[%emt
00:01:29]} a5 {[%clk 01:16:47]} {[%emt 00:01:58]} 16. Na3 {[%clk 01:08:49]}
{[%emt 00:09:03]} Ba6 {[%clk 01:11:36]} {[%emt 00:05:41]} 17. Be3 {[%clk
01:03:39]} {[%emt 00:05:40]} Nfd7 {[%clk 01:09:34]} {[%emt 00:02:32]} 18. Nd2
{[%clk 00:58:50]} {[%emt 00:05:18]} c4 {[%clk 00:58:32]} {[%emt 00:11:33]} 19.
Qg4 {[%clk 00:54:01]} {[%emt 00:05:19]} f5 {[%clk 00:37:54]} {[%emt 00:21:09]}
20. exf5 {[%clk 00:38:48]} {[%emt 00:15:42]} Nxd5 {[%clk 00:37:07]} {[%emt
00:01:17]} 21. Ndxc4 {[%clk 00:37:23]} {[%emt 00:01:55]} N7f6 {[%clk 00:31:56]}
{[%emt 00:05:41]} 22. Qf3 {[%clk 00:31:55]} {[%emt 00:05:58]} Rc8 {[%clk
00:28:52]} {[%emt 00:03:35]} 23. Bb3 {[%clk 00:30:41]} {[%emt 00:01:43]} Kh8
{[%clk 00:28:52]} {[%emt 00:00:32]} 24. Bd2 {[%clk 00:28:14]} {[%emt 00:02:56]}
Rc5 {[%clk 00:21:44]} {[%emt 00:07:39]} 25. Nb5 {[%clk 00:15:45]} {[%emt
00:12:59]} Bxb5 {[%clk 00:16:59]} {[%emt 00:05:15]} 26. axb5 {[%clk 00:16:13]}
{[%emt 00:00:01]} Rxb5 {[%clk 00:17:27]} {[%emt 00:00:02]} 27. Qd1 {[%clk
00:13:38]} {[%emt 00:03:04]} Rc5 {[%clk 00:14:54]} {[%emt 00:03:05]} 28. Qc2
{[%clk 00:12:57]} {[%emt 00:01:11]} Qc7 {[%clk 00:14:32]} {[%emt 00:00:53]} 29.
Ra4 {[%clk 00:12:47]} {[%emt 00:00:39]} e4 {[%clk 00:12:11]} {[%emt 00:02:52]}
30. Rea1 {[%clk 00:11:15]} {[%emt 00:02:01]} Qc8 {[%clk 00:10:55]} {[%emt
00:01:46]} 31. Ne3 {[%clk 00:03:19]} {[%emt 00:08:26]} Nxc3 {[%clk 00:05:29]}
{[%emt 00:05:57]} 32. Bxc3 {[%clk 00:03:21]} {[%emt 00:00:27]} Rxc3 {[%clk
00:05:58]} 33. Qd1 {[%clk 00:02:25]} {[%emt 00:01:27]} Rd3 {[%clk 00:03:37]}
{[%emt 00:02:51]} 34. Qc2 {[%clk 00:01:51]} {[%emt 00:01:02]} Rc3 {[%clk
00:04:06]} {[%emt 00:00:03]} 35. Qd1 {[%clk 00:01:46]} {[%emt 00:00:34]} Qb8
{[%clk 00:02:45]} {[%emt 00:01:51]} 36. Bc4 {[%clk 00:00:37]} {[%emt 00:01:40]}
d5 {[%clk 00:00:39]} {[%emt 00:02:36]} 37. Nxd5 {[%clk 00:00:35]} {[%emt
00:00:32]} Nxd5 {[%clk 00:01:03]} {[%emt 00:00:06]} 38. Qxd5 {[%clk 00:00:32]}
{[%emt 00:00:33]} e3 {[%clk 00:01:29]} {[%emt 00:00:03]} 39. fxe3 {[%clk
00:00:35]} {[%emt 00:00:28]} Bb4 {[%clk 00:00:37]} {[%emt 00:01:23]} 40. Bf1
{[%clk 00:00:33]} {[%emt 00:00:32]} Rxe3 {[%clk 00:00:55]} {[%emt 00:00:12]} 41.
Qd4 {[%clk 00:00:35]} {[%emt 00:00:26]} Re5 {[%clk 00:01:04]} {[%emt 00:00:22]}
42. Kh1 {[%clk 00:00:32]} {[%emt 00:00:33]} Rexf5 {[%clk 00:01:13]} {[%emt
00:00:21]} 43. Bd3 {[%clk 00:00:34]} {[%emt 00:00:28]} Rf4 {[%clk 00:01:41]}
{[%emt 00:00:02]} 44. Qe3 {[%clk 00:00:34]} {[%emt 00:00:31]} Qd6 {[%clk
00:01:32]} {[%emt 00:00:39]} 45. Be2 {[%clk 00:00:32]} {[%emt 00:00:33]} Bc5
{[%clk 00:01:03]} {[%emt 00:00:58]} 46. Qd3 {[%clk 00:00:37]} {[%emt 00:00:24]}
Rxa4 {[%clk 00:00:51]} {[%emt 00:00:43]} 47. Rxa4 {[%clk 00:00:57]} {[%emt
00:00:11]} Qh6 {[%clk 00:00:35]} {[%emt 00:00:45]} 48. Rxa5 {[%emt 00:00:57]}
Bd6 {[%clk 00:00:34]} {[%emt 00:00:23]} 49. Rf5 {[%clk 00:00:34]} {[%emt
00:00:34]} Rxf5 {[%clk 00:00:33]} {[%emt 00:00:31]} 50. Qxf5 {[%clk 00:00:58]}
{[%emt 00:00:06]} 1/2-1/2